fUST/lending_fUST_20260207
["ID","MTS","AMOUNT","RATE_DAILY","PERIOD"]
[404689386,1770461441407,-509.1,0.00027799,30]
[404689387,1770461441416,-85498.93581295,0.000278,2]
[404689388,1770461441425,-734.449774,0.000278,7]
[404689389,1770461441434,-734.449774,0.000278,7]
[404689390,1770461441443,-734.449774,0.000278,7]
[404689391,1770461441452,-129.80592127,0.000278,7]
[404689400,1770461444322,-21.19407873,0.000278,7]
[404689401,1770461444331,-151.0,0.000278,7]
[404689402,1770461444340,-509.1,0.00027841,30]
[404689403,1770461444350,-509.1,0.00027847,30]
[404689404,1770461444359,-509.1,0.00027847,30]
[404689405,1770461444368,-18446.90244867,0.00027848,2]
[404689415,1770461446222,-2527.39973251,0.00027848,2]
[404689416,1770461446380,-7575.2392644,0.00027848,2]
[404689462,1770462632245,-945.17221883,0.00018523,2]
[404689657,1770462638293,-919.50779687,0.00018523,2]
[404689664,1770462638347,-1779.75102254,0.00018523,2]
[404689666,1770462638358,-150.0,0.00018805,2]
[404689668,1770462638367,-192.0,0.00018825,2]
[404689670,1770462638376,-300.0,0.00018825,2]
[404689672,1770462638385,-1200.0,0.00018825,2]
[404689674,1770462638394,-858.3883644,0.00018826,2]
[404689676,1770462638406,-322.09212149,0.00018826,2]
[404689882,1770462640550,-442.58507751,0.00018826,2]
[404689938,1770462644829,-748.51872638,0.00018826,2]
[404689945,1770462646506,-4110.04072521,0.00018826,2]
[404689946,1770462646515,-303.10001603,0.000189,2]
[404689947,1770462646526,-420.0,0.00020523,2]
[404689948,1770462646537,-177.0,0.00020805,2]
[404689949,1770462646546,-587.0,0.00022374,2]
[404689950,1770462646556,-204.0,0.00022805,2]
[404689951,1770462646566,-823.0,0.00024392,2]
[404689952,1770462646576,-400.0,0.000246,5]
[404689953,1770462646585,-500.0,0.00024648,2]
[404689954,1770462646594,-500.0,0.00024649,2]
[404689955,1770462646603,-500.0,0.00024649,2]
[404689956,1770462646611,-500.0,0.00024649,2]
[404689957,1770462646621,-231.0,0.00024805,2]
[404689958,1770462646632,-500.0,0.00024974,2]
[404689959,1770462646642,-500.0,0.00024974,2]
[404689960,1770462646653,-607.2053893,0.00024974,2]
[404689961,1770462646663,-500.0,0.00024974,2]
[404689962,1770462646672,-382.17711818,0.00024974,2]
[404689963,1770462646681,-257.9693536,0.00024974,2]
[404689964,1770462646691,-336.1715483,0.00024974,2]
[404689965,1770462646700,-587.34404287,0.00024974,2]
[404689966,1770462646709,-1548.96339704,0.00024975,2]
[404689972,1770463572501,493.90552395,0.00013273,2]
[404689975,1770463638511,458.4935843,0.00013273,2]
[404689977,1770463690667,470.6487804,0.0003013,120]
[404690076,1770463881195,-9.14544169,0.00017,2]
[404690077,1770463881211,-1142.79211877,0.00017,2]
[404690080,1770464226592,19367.51863,0.0003013,120]
[404690081,1770464369222,1990.0,0.000159,2]
[404690165,1770465037794,-150.0,0.00019906,2]
[404690167,1770465037805,-415.57038801,0.0002,7]
[404690169,1770465037815,-177.0,0.00021906,2]
[404690171,1770465037827,-150.0,0.00021918,2]
[404690172,1770465037837,-162.48620884,0.00021918,2]
[404690174,1770465037847,-300.0,0.00022466,2]
[404690177,1770465037867,-1320.30228376,0.00022466,2]
[404690346,1770465621753,-151.0,0.00021548,2]
[404690348,1770465742492,-299.34752626,0.0002047,2]
[404690349,1770465742521,-207.91417128,0.00021548,2]
[404690350,1770465742549,-373.8712628,0.00021548,2]
[404690351,1770465742576,-150.0,0.00021898,2]
[404690352,1770465742602,-300.0,0.0002268,2]
[404690353,1770465742694,-155.87128475,0.00022681,2]
[404690368,1770465775804,-1331.13296034,0.00022681,2]
[404690540,1770466231858,-300.0,0.00022809,2]
[404690541,1770466231868,-150.0,0.00022809,2]
[404690542,1770466231877,-404.08839603,0.0002281,2]
[404690543,1770466231897,-17005.55662957,0.0002281,2]
[404690544,1770466231906,-505.7992376,0.00022851,2]
[404690545,1770466231916,-972.23932,0.00022878,2]
[404690546,1770466231925,-6791.89681905,0.00022878,2]
[404690547,1770466231935,-1164.86648874,0.00023035,2]
[404690548,1770466231944,-300.0,0.00023135,10]
[404690549,1770466231954,-300.0,0.00023135,10]
[404690550,1770466231964,-300.0,0.00023135,10]
[404690551,1770466231974,-300.0,0.00023135,10]
[404690552,1770466231983,-300.0,0.00023135,10]
[404690553,1770466231993,-300.0,0.00023135,10]
[404690554,1770466232003,-300.0,0.00023135,10]
[404690555,1770466232012,-300.0,0.00023135,10]
[404690556,1770466232021,-300.0,0.00023135,10]
[404690557,1770466232031,-300.0,0.00023135,10]
[404690558,1770466232041,-300.0,0.00023135,10]
[404690559,1770466232051,-300.0,0.00023135,10]
[404690560,1770466232061,-300.0,0.00023135,10]
[404690561,1770466232071,-36.3880498,0.00023135,10]
[404690567,1770466238047,-263.6119502,0.00023135,10]
[404690568,1770466238056,-300.0,0.00023135,10]
[404690569,1770466238065,-500.0,0.00023594,2]
[404690570,1770466238075,-500.0,0.00023594,2]
[404690571,1770466238084,-500.0,0.00023594,2]
[404690572,1770466238093,-500.0,0.00023594,2]
[404690573,1770466238102,-279.34509819,0.00023594,2]
[404690574,1770466238111,-384.91289652,0.00023594,2]
[404690575,1770466238120,-600.0,0.00023597,10]
[404690576,1770466238129,-1000.0,0.00023652,30]
[404690577,1770466238139,-228.78022893,0.00024114,2]
[404690578,1770466238149,-692.0894114,0.00024687,2]
[404690579,1770466238158,-4226.9561658,0.00024742,2]
[404690580,1770466238168,-420.0,0.00024765,2]
[404690581,1770466238177,-783.0,0.000248,2]
[404690582,1770466238186,-177.0,0.00024809,2]
[404690583,1770466238195,-500.0,0.00024896,30]
[404690584,1770466238204,-10118.10830483,0.00024897,2]
[404690585,1770466238213,-30.20776081,0.000249,2]
[404690608,1770466240213,-170.00285642,0.000249,2]
[404690609,1770466240222,-342.29133932,0.00024974,2]
[404690610,1770466240231,-616.12441078,0.00024974,2]
[404690611,1770466240240,-1095.33228584,0.00024974,2]
[404690612,1770466240250,-500.0,0.00024999,30]
[404690613,1770466240260,-459.0,0.00025,5]
[404690614,1770466240270,-436.05484668,0.00025065,2]
[404690615,1770466240279,-1164.86648872,0.00025374,2]
[404690616,1770466240289,-172.261319,0.0002538,2]
[404690617,1770466240298,-1199.0,0.000258,7]
[404690618,1770466240308,-1131.0,0.000258,7]
[404690619,1770466240317,-326.5449356,0.00025872,2]
[404690620,1770466240327,-1709.74523993,0.00025872,2]
[404690621,1770466240337,-720.0,0.00025956,10]
[404690622,1770466240349,-878.15,0.00026055,2]
[404690623,1770466240362,-1046.189,0.00026055,2]
[404690624,1770466240372,-500.0,0.00026108,7]
[404690625,1770466240383,-194.72792766,0.00026455,2]
[404690626,1770466240393,-201.93286099,0.00026455,2]
[404690627,1770466240402,-336.96669733,0.00026455,2]
[404690628,1770466240412,-204.0,0.00026809,2]
[404690629,1770466240422,-587.0,0.00026889,2]
[404690630,1770466240431,-5264.91524151,0.0002699,2]
[404690631,1770466240440,-3067.83551651,0.00027,2]
[404690632,1770466240449,-826.5,0.00027229,10]
[404690633,1770466240459,-182.534,0.00027396,2]
[404690634,1770466240468,-500.0,0.00027396,30]
[404690635,1770466240478,-151.0,0.00027397,2]
[404690636,1770466240487,-151.0,0.00027397,2]
[404690637,1770466240496,-151.0,0.00027397,2]
[404690638,1770466240505,-151.0,0.00027397,2]
[404690639,1770466240514,-151.0,0.00027397,2]
[404690640,1770466240523,-151.0,0.00027397,2]
[404690641,1770466240533,-151.0,0.00027397,2]
[404690642,1770466240542,-151.0,0.00027397,2]
[404690643,1770466240551,-172.194079,0.00027397,2]
[404690644,1770466240560,-151.0,0.00027397,2]
[404690645,1770466240569,-151.0,0.00027397,2]
[404690646,1770466240578,-151.0,0.00027397,2]
[404690647,1770466240587,-151.0,0.00027397,2]
[404690648,1770466240597,-151.0,0.00027397,2]
[404690649,1770466240606,-151.0,0.00027397,2]
[404690650,1770466240615,-151.0,0.00027397,2]
[404690651,1770466240624,-151.0,0.00027397,2]
[404690652,1770466240634,-151.0,0.00027397,2]
[404690653,1770466240644,-151.0,0.00027397,2]
[404690654,1770466240654,-151.0,0.00027397,2]
[404690655,1770466240664,-151.0,0.00027397,2]
[404690656,1770466240674,-151.0,0.00027397,2]
[404690657,1770466240683,-151.0,0.00027397,2]
[404690658,1770466240693,-151.0,0.00027397,2]
[404690659,1770466240702,-185.602876,0.00027397,2]
[404690660,1770466240711,-151.0,0.00027397,2]
[404690661,1770466240721,-151.0,0.00027397,2]
[404690662,1770466240730,-151.0,0.00027397,2]
[404690663,1770466240740,-151.0,0.00027397,2]
[404690664,1770466240750,-151.0,0.00027397,2]
[404690665,1770466240760,-150.0,0.00027397,5]
[404690666,1770466240769,-5707.02807871,0.00027663,2]
[404690698,1770466246061,-132.65013199,0.00027663,2]
[404690699,1770466246070,-150.0,0.00027673,30]
[404690700,1770466246080,-2203.967515,0.00027673,30]
[404690701,1770466246089,-4257.93503,0.00027673,30]
[404690702,1770466246099,-6311.902545,0.00027673,30]
[404690703,1770466246108,-8365.87006,0.00027673,30]
[404690704,1770466246117,-10419.837576,0.00027673,30]
[404690705,1770466246127,-12473.805091,0.00027673,30]
[404690706,1770466246136,-14527.772606,0.00027673,30]
[404690707,1770466246148,-16581.740121,0.00027673,30]
[404690708,1770466246157,-18635.707637,0.00027673,30]
[404690709,1770466246167,-1164.86648872,0.00027713,2]
[404690710,1770466246176,-150.0,0.00027736,30]
[404690711,1770466246186,-338.306537,0.00027736,30]
[404690712,1770466246195,-526.613075,0.00027736,30]
[404690713,1770466246204,-714.919613,0.00027736,30]
[404690714,1770466246213,-903.226151,0.00027736,30]
[404690715,1770466246223,-1091.532689,0.00027736,30]
[404690716,1770466246232,-1279.839226,0.00027736,30]
[404690717,1770466246241,-1468.145764,0.00027736,30]
[404690718,1770466246251,-1656.452302,0.00027736,30]
[404690719,1770466246260,-1844.75884,0.00027736,30]
[404690720,1770466246269,-168.0,0.00027834,2]
[404690721,1770466246279,-500.0,0.00027847,30]
[404690722,1770466246287,-500.0,0.00027847,30]
[404690723,1770466246297,-4012.59,0.00027848,3]
[404690724,1770466246306,-2006.29,0.00027848,3]
[404690725,1770466246315,-1003.15,0.00027848,3]
[404690726,1770466246324,-501.57,0.00027848,3]
[404690727,1770466246334,-250.79,0.00027848,3]
[404690728,1770466246343,-752.38,0.00027848,3]
[404690729,1770466246355,-43797.5865803,0.00027848,2]
[404690730,1770466246364,-500.0,0.00027857,30]
[404690731,1770466246373,-500.0,0.00027857,30]
[404690732,1770466246383,-500.0,0.00027857,30]
[404690733,1770466246393,-500.0,0.00027857,30]
[404690734,1770466246404,-500.0,0.00027857,30]
[404690735,1770466246413,-500.0,0.00027857,30]
[404690736,1770466246425,-500.0,0.00027857,30]
[404690737,1770466246434,-500.0,0.00027857,30]
[404690738,1770466246443,-500.0,0.00027857,30]
[404690739,1770466246452,-500.0,0.00027857,30]
[404690740,1770466246461,-500.0,0.00027857,30]
[404690741,1770466246471,-182.03454743,0.00027857,30]
[404690742,1770466246480,-663652.33751946,0.00027858,2]
[404690743,1770466246489,-487.0,0.00027858,2]
[404690744,1770466246499,-487.0,0.00027858,2]
[404690745,1770466246508,-487.0,0.00027858,2]
[404690746,1770466246518,-487.0,0.00027858,2]
[404690747,1770466246527,-487.0,0.00027858,2]
[404690748,1770466246536,-487.0,0.00027858,2]
[404690749,1770466246546,-487.0,0.00027858,2]
[404690750,1770466246555,-487.0,0.00027858,2]
[404690751,1770466246563,-487.0,0.00027858,2]
[404690752,1770466246573,-770.39,0.00027858,2]
[404690753,1770466246582,-943.1614062,0.00027876,2]
[404690754,1770466246592,-5839.6782107,0.0002789,2]
[404690755,1770466246601,-78834.77667396,0.000279,2]
[404690760,1770466402448,158.0,0.00013699,2]
[404690770,1770467229897,500.0,0.00013699,2]
[404690771,1770467229949,790.2,0.00014247,2]
[404690775,1770467371106,283.88,1.08e-06,2]
[404690867,1770467440310,-2675.35888061,0.0002,7]
[404690868,1770467440321,-150.0,0.00023922,2]
[404690869,1770467440333,-177.0,0.00025922,2]
[404690870,1770467440343,-486.11966,0.0002623,2]
[404690871,1770467440355,-300.0,0.00026683,2]
[404690872,1770467440367,-8011.12472597,0.00026684,2]
[404690873,1770467440378,-150.0,0.00027397,5]
[404690874,1770467440390,-728.04155545,0.000278,2]
[404690876,1770467440401,-1162.95517797,0.00027849,2]
[404690879,1770467440421,-308.77309983,0.00027849,2]
[404690880,1770467440431,-210.4477556,0.00027849,2]
[404690881,1770467440442,-153.87921072,0.00027899,2]
[404690882,1770467440454,-3154.40891825,0.000279,2]
[404690901,1770467446131,-6867.7,0.000279,2]
[404690902,1770467446243,-2400.82157241,0.000279,2]
[404690903,1770467446299,-8742.29283538,0.000279,2]
[404690904,1770467446309,-501.10127774,0.000279,10]
[404690905,1770467446319,-502.08662039,0.000279,10]
[404690906,1770467446328,-15630.62680265,0.000279,2]
[404690907,1770467446337,-168.0,0.00027909,2]
[404690908,1770467446347,-204.0,0.00027922,2]
[404690909,1770467446356,-250.0,0.00027945,5]
[404690910,1770467446366,-2591.46,0.0002798,3]
[404690911,1770467446375,-1295.73,0.0002798,3]
[404690912,1770467446385,-647.86,0.0002798,3]
[404690913,1770467446395,-323.93,0.0002798,3]
[404690914,1770467446404,-161.97,0.0002798,3]
[404690915,1770467446414,-485.93,0.0002798,3]
[404690916,1770467446427,-729.95977635,0.00027986,2]
[404690917,1770467446436,-43704.33443385,0.0002799,2]
[404690918,1770467446445,-151.0,0.0002799,7]
[404690919,1770467446455,-38000.0,0.00027996,7]
[404690920,1770467446464,-2405.86909896,0.00027996,7]
[404690921,1770467446474,-38000.0,0.00027996,7]
[404690922,1770467446483,-38000.0,0.00027996,7]
[404690923,1770467446493,-38000.0,0.00027996,7]
[404690924,1770467446503,-38000.0,0.00027996,7]
[404690925,1770467446512,-151.0,0.00027996,7]
[404690926,1770467446522,-649.5,0.00027996,7]
[404690927,1770467446531,-649.5,0.00027996,7]
[404690928,1770467446541,-649.5,0.00027996,7]
[404690929,1770467446551,-649.5,0.00027996,7]
[404690930,1770467446561,-649.5,0.00027996,7]
[404690931,1770467446570,-649.5,0.00027996,7]
[404690932,1770467446579,-649.5,0.00027996,7]
[404690933,1770467446589,-649.5,0.00027996,7]
[404690934,1770467446598,-649.5,0.00027996,7]
[404690935,1770467446607,-649.5,0.00027996,7]
[404690936,1770467446616,-649.5,0.00027996,7]
[404690937,1770467446626,-649.5,0.00027996,7]
[404690938,1770467446636,-151.0,0.00027996,7]
[404690939,1770467446646,-151.0,0.00027996,7]
[404690940,1770467446656,-38000.0,0.00027996,7]
[404690941,1770467446666,-151.0,0.00027996,7]
[404690942,1770467446680,-151.0,0.00027996,7]
[404690943,1770467446690,-151.0,0.00028,13]
[404690944,1770467446700,-1143514.16941816,0.00028,2]
[404690945,1770467586489,500.0,0.00013699,2]
[404690946,1770467586518,832.76667139,0.00014247,2]
[404690950,1770468042847,249.999999,0.0003,120]
[404690951,1770468144021,250.0,0.0003,120]
[404690952,1770468178063,390.0,0.00030137,120]
[404690953,1770468327436,249.999999,0.0003,120]
[404690954,1770468413115,-5000.0,0.00024053,2]
[404690955,1770468413136,-5000.0,0.00024296,2]
[404690956,1770468413157,-300.0,0.0002454,2]
[404690957,1770468413178,-5580.649328,0.00024541,2]
[404690958,1770468420460,250.0,0.0003,120]
[404690959,1770468452372,250.0,0.0003,120]
[404690960,1770468548684,250.0,0.0003,120]
[404690993,1770468632198,-965.83169452,0.00024053,2]
[404691000,1770468632307,-358.46705108,0.00024053,2]
[404691036,1770468638443,-1070.99428451,0.00024053,2]
[404691213,1770468640468,-2604.70696989,0.00024053,2]
[404691215,1770468640477,-300.0,0.00024418,2]
[404691217,1770468640486,-150.0,0.00024419,2]
[404691219,1770468640496,-7801.24963542,0.00024419,2]
[404691221,1770468640506,-1000.0,0.00025862,30]
[404691223,1770468640515,-177.0,0.00026419,2]
[404691225,1770468640524,-1653.7502574,0.00026455,2]
[404691227,1770468640534,-420.0,0.00026469,2]
[404691229,1770468640543,-1046.189,0.0002669,2]
[404691231,1770468640552,-878.15,0.0002669,2]
[404691233,1770468640562,-1000.0,0.00027,2]
[404691235,1770468640571,-150.0,0.00027397,5]
[404691237,1770468640580,-381.93268902,0.00027858,2]
[404691257,1770468640589,-873.64986654,0.00027877,2]
[404691259,1770468640762,-500.0,0.00027899,30]
[404691261,1770468640771,-500.0,0.00027899,30]
[404691263,1770468640781,-250.0,0.00027945,5]
[404691265,1770468640793,-5263.11337172,0.0002797,7]
[404691470,1770468645280,-1764.516592,0.0002797,7]
[404691479,1770468720178,250.0,0.0003,120]
[404691481,1770468779703,250.0,0.0003,120]
[404691482,1770468817422,250.0,0.0003,120]
[404691483,1770468899473,250.0,0.0003,120]
[404691484,1770468978235,249.999999,0.0003,120]
[404691485,1770469017320,250.0,0.0003,120]
[404691486,1770469077948,250.0,0.0003,120]
[404691492,1770469120345,250.0,0.0003,120]
[404691493,1770469175525,250.0,0.0003,120]
[404691494,1770469325048,249.999999,0.0003,120]
[404691495,1770469419342,250.0,0.0003,120]
[404691496,1770469450340,250.0,0.0003,120]
[404691498,1770469519950,249.999999,0.0003,120]
[404691505,1770469592071,250.0,0.0003,120]
[404691507,1770469716094,250.0,0.0003,120]
[404691509,1770469802975,250.0,0.0003,120]
[404691533,1770469838557,-2925.0347818,0.00023481,2]
[404691545,1770469846064,-573.6875,0.00023481,2]
[404691546,1770469846076,-1501.2777182,0.00023481,2]
[404691547,1770469846085,-150.0,0.00023958,2]
[404691548,1770469846095,-1752.00439688,0.00023958,2]
[404691550,1770469846615,-4927.12128067,0.00023958,2]
[404691551,1770469846625,-300.0,0.00024198,2]
[404691552,1770469846635,-194.73,0.000242,2]
[404691553,1770469846645,-194.12403305,0.00025142,2]
[404691554,1770469846654,-177.0,0.00025958,2]
[404691555,1770469846664,-420.0,0.00026236,2]
[404691556,1770469846675,-527.21409159,0.00027858,2]
[404691560,1770469924308,500.0,0.00013273,2]
[404691561,1770469924332,500.0,0.00013821,2]
[404691562,1770469924541,500.74535608,0.00013273,2]
[404691563,1770469925257,502.24618718,0.00013273,2]
[404691564,1770469926085,500.0,0.00013273,2]
[404691565,1770469926133,604.02701138,0.00013821,2]
[404691566,1770469926891,502.52788645,0.00013273,2]
[404691570,1770470063138,250.00000403,0.0003,120]
[404691571,1770470121676,500.0,0.0003,120]
[404691572,1770470191684,250.0,0.0003,120]
[404691578,1770470604350,600.0,0.0003013,120]
[404691581,1770470674906,152.0,0.000159,2]
[404691620,1770471031615,-2675.35888061,0.0002,7]
[404691622,1770471031625,-5000.0,0.00020748,2]
[404691624,1770471031634,-5000.0,0.00020958,2]
[404691626,1770471031643,-150.0,0.0002117,2]
[404691628,1770471031652,-300.0,0.00022339,2]
[404691630,1770471031662,-1936.72250929,0.0002234,2]
[404692273,1770471045429,-303.10001603,0.000189,2]
[404692274,1770471045439,-303.10001603,0.00019089,2]
[404692275,1770471045448,-3887.26460529,0.0002234,2]
[404692276,1770471045461,-857.08920457,0.0002234,2]
[404692277,1770471045470,-177.0,0.0002317,2]
[404692278,1770471045480,-153.87921072,0.00023999,2]
[404692279,1770471045489,-9239.43158471,0.00024,2]
[404692281,1770471072367,200.0,1.08e-06,2]
[404692286,1770471372941,249.999999,0.0003,120]
[404692288,1770471408667,24369.48612917,0.0003,120]
[404692295,1770471853230,926.0,0.0003,120]
[404692300,1770472173123,-1729.22626016,0.00022356,2]
[404692308,1770472231777,-508.46688933,0.00022132,2]
[404692928,1770472244798,-2332.02341682,0.00022132,2]
[404692929,1770472244809,-150.0,0.00022389,2]
[404692930,1770472244819,-300.0,0.00022646,2]
[404692931,1770472244830,-171.0530488,0.00022647,2]
[404692932,1770472244840,-7231.46374827,0.00022647,2]
[404692933,1770472244854,-160.26474865,0.00022724,2]
[404692934,1770472244864,-1222.18460487,0.00022724,2]
[404692935,1770472244873,-1907.75378167,0.00022724,2]
[404692936,1770472244883,-326.4125147,0.00022725,2]
[404692937,1770472244892,-1037.3356898,0.00022791,2]
[404692938,1770472244902,-168.1162592,0.00022925,2]
[404692939,1770472244911,-6075.25956849,0.00022925,2]
[404692940,1770472244920,-189.15,0.000236,2]
[404692941,1770472244930,-193.21031711,0.00023966,2]
[404692961,1770472565008,-1000.0,0.000239,2]
[404692962,1770472566760,-884.78350178,0.000239,2]
[404692963,1770472566784,-115.21649822,0.00023949,2]
[404692964,1770472567124,-34.78350178,0.00023949,2]
[404692965,1770472567144,-500.0,0.00023998,2]
[404692966,1770472567164,-300.0,0.00023998,2]
[404692967,1770472567184,-165.21649822,0.00023999,2]
[404692968,1770472567479,-334.78350178,0.00023999,2]
[404692969,1770472567501,-500.0,0.00023999,2]
[404692970,1770472567522,-165.21649822,0.00023999,2]
[404692971,1770472567850,-334.78350178,0.00023999,2]
[404692972,1770472567873,-500.0,0.00023999,2]
[404692973,1770472567894,-165.21649822,0.00023999,2]
[404692974,1770472568137,-334.78350178,0.00023999,2]
[404692975,1770472568161,-500.0,0.00023999,2]
[404692976,1770472568185,-165.21649822,0.00023999,2]
[404692977,1770472568505,-394.75615812,0.00023999,2]
[404692978,1770472568526,-500.0,0.00023999,2]
[404692979,1770472568547,-105.24384188,0.00024,2]
[404692980,1770472568887,-1000.0,0.00024,2]
[404692981,1770472571265,-1000.0,0.00024,2]
[404692982,1770472571502,-1000.0,0.00024,2]
[404692983,1770472571829,-1000.0,0.00024,2]
[404692984,1770472572425,-1000.0,0.00024,2]
[404692985,1770472572547,-1000.0,0.00024,2]
[404692986,1770472572894,-1000.0,0.00024,2]
[404692987,1770472573344,-1000.0,0.00024,2]
[404692988,1770472573793,-1000.0,0.00024,2]
[404692989,1770472574113,-1000.0,0.00024,2]
[404692990,1770472574466,-1000.0,0.00024,2]
[404692991,1770472574829,-1000.0,0.00024,2]
[404692992,1770472575301,-1000.0,0.00024,2]
[404692993,1770472575702,-1000.0,0.00024,2]
[404692994,1770472576282,-1000.0,0.00024,2]
[404692995,1770472576751,-1000.0,0.00024,2]
[404692996,1770472576986,-1000.0,0.00024,2]
[404692997,1770472577430,-1000.0,0.00024,2]
[404692998,1770472578266,-1000.0,0.00024,2]
[404692999,1770472578720,-1000.0,0.00024,2]
[404693000,1770472579098,-1000.0,0.00024,2]
[404693001,1770472579422,-1000.0,0.00024,2]
[404693002,1770472579766,-1000.0,0.00024,2]
[404693003,1770472580143,-1000.0,0.00024,2]
[404693004,1770472580582,-1000.0,0.00024,2]
[404693005,1770472581729,-1000.0,0.00024,2]
[404693006,1770472596551,-1000.0,0.00024,2]
[404693007,1770472597676,-1000.0,0.00024,2]
[404693008,1770472598655,-1000.0,0.00024,2]
[404693009,1770472599643,-1000.0,0.00024,2]
[404693010,1770472600620,-1000.0,0.00024,2]
[404693011,1770472601594,-1000.0,0.00024,2]
[404693012,1770472602560,-1000.0,0.00024,2]
[404693013,1770472603560,-1000.0,0.00024,2]
[404693014,1770472604560,-1000.0,0.00024,2]
[404693015,1770472605535,-1000.0,0.00024,2]
[404693016,1770472606546,-1000.0,0.00024,2]
[404693017,1770472607491,-1000.0,0.00024,2]
[404693018,1770472608422,-569.69326003,0.00024,2]
[404693019,1770472608444,-430.30673997,0.00024,2]
[404693020,1770472609450,-1000.0,0.00024,2]
[404693021,1770472629122,-300.0,0.00023998,2]
[404693022,1770472629147,-500.0,0.00023999,2]
[404693023,1770472629169,-200.0,0.00023999,2]
[404693024,1770472630655,-300.0,0.00023999,2]
[404693025,1770472630678,-500.0,0.00023999,2]
[404693026,1770472630700,-200.0,0.00023999,2]
[404693027,1770472631930,-300.72780749,0.00023999,2]
[404693028,1770472631958,-500.0,0.00023999,2]
[404693029,1770472631980,-199.27219251,0.00023999,2]
[404693030,1770472633290,-1000.0,0.00024,2]
[404693031,1770472634519,-1000.0,0.00024,2]
[404693032,1770472635651,-1000.0,0.00024,2]
[404693033,1770472636692,-1000.0,0.00024,2]
[404693034,1770472637782,-1000.0,0.00024,2]
[404693035,1770472638820,-858.37015178,0.00024,2]
[404693036,1770472638841,-141.62984822,0.00024,2]
[404693037,1770472642076,-1000.0,0.00024,2]
[404693038,1770472643185,-1000.0,0.00024,2]
[404693045,1770472938947,-2604.70696989,0.00022696,2]
[404693046,1770472938966,-150.0,0.0002281,2]
[404693047,1770472938975,-500.0,0.00022925,2]
[404693048,1770472968225,-500.0,0.00023354,2]
[404693049,1770472968252,-361.6994246,0.00023419,2]
[404693050,1770472968272,-500.0,0.00023465,2]
[404693051,1770472968283,-361.6994246,0.00023465,2]
[404693052,1770472968294,-272.39603537,0.00023465,2]
[404693053,1770473115435,-2200.0,0.00023231,2]
[404693075,1770473431982,-825.0,0.00022318,2]
[404693078,1770473431994,-442.25,0.00022318,2]
[404693079,1770473432004,-194.25632153,0.00022544,2]
[404693081,1770473432013,-7653.58813466,0.00022544,2]
[404693082,1770473432022,-1000.0,0.00022574,30]
[404693083,1770473432033,-300.0,0.00022685,2]
[404693084,1770473432042,-300.0,0.00022685,2]
[404693085,1770473432051,-1200.0,0.00022685,2]
[404693086,1770473432061,-150.0,0.00022686,2]
[404693087,1770473432071,-188.97276966,0.000228,2]
[404693088,1770473432080,-519.65479743,0.00023465,2]
[404693089,1770473432090,-339.8108344,0.00023731,2]
[404693090,1770473432099,-1162.9551779,0.00023828,2]
[404693091,1770473432109,-257.80779288,0.00023865,2]
[404693092,1770473432120,-246.71141291,0.00023865,2]
[404693093,1770473432129,-37.9320907,0.00023865,2]
[404693094,1770473432141,-507.04986761,0.00023865,2]